bitfinex/quotes_BTCUSD_20241023
["timestamp","ask_amount","ask_price","bid_price","bid_amount"]
[1729723743093,0.151179,66509.0,66508.0,0.19803195]
[1729723749531,0.151179,66509.0,66508.0,0.09953195]
[1729723749955,0.151179,66509.0,66508.0,0.09953197]
[1729723751275,0.000824,66509.0,66508.0,0.45185302]
[1729723751498,0.000824,66509.0,66508.0,0.46125777]
[1729723754466,0.000824,66509.0,66508.0,0.57760271]
[1729723754707,0.000824,66509.0,66508.0,0.46905215]
[1729723754928,0.000824,66509.0,66508.0,0.46643866]
[1729723755656,0.000824,66509.0,66508.0,0.46905228]
[1729723756391,0.000824,66509.0,66508.0,0.4690522]
[1729723756818,0.000824,66509.0,66508.0,0.46904936]
[1729723757259,0.000824,66509.0,66508.0,0.44480749]
[1729723757480,0.000824,66509.0,66508.0,0.46643582]
[1729723759035,0.000824,66509.0,66508.0,0.83926773]
[1729723759258,0.000824,66509.0,66508.0,0.73010368]
[1729723759475,0.000824,66509.0,66508.0,0.78513766]
[1729723759687,0.000824,66520.0,66519.0,0.43507694]
[1729723759915,0.000824,66520.0,66519.0,0.45670527]
[1729723760143,0.000824,66520.0,66519.0,0.4617263]
[1729723763495,0.000824,66520.0,66519.0,0.4667263]
[1729723764167,0.000824,66520.0,66519.0,0.46672317]
[1729723774925,0.000824,66520.0,66519.0,0.35055912]
[1729723776723,0.000824,66520.0,66519.0,0.44009797]
[1729723778037,0.000824,66520.0,66519.0,0.4617235]
[1729723779909,0.000824,66520.0,66519.0,0.46172262]
[1729723780332,0.000824,66520.0,66519.0,0.44271004]
[1729723780540,0.000824,66520.0,66519.0,0.46433469]
[1729723781191,0.000824,66520.0,66519.0,0.69029105]
[1729723781397,0.000824,66520.0,66519.0,0.46172262]
[1729723782240,0.000824,66520.0,66519.0,0.46672262]
[1729723783767,0.000824,66520.0,66519.0,0.44509797]
[1729723783988,0.000824,66520.0,66519.0,0.46672156]
[1729723785714,0.000824,66520.0,66519.0,0.57788561]
[1729723786158,0.000824,66520.0,66519.0,0.46672156]
[1729723787050,0.000824,66520.0,66519.0,0.57788561]
[1729723787257,0.000824,66520.0,66519.0,0.46672156]
[1729723789222,0.000824,66520.0,66519.0,0.69267792]
[1729723789427,0.000824,66520.0,66519.0,0.57788561]
[1729723791383,0.000824,66520.0,66519.0,0.55626202]
[1729723791635,0.000824,66520.0,66519.0,0.57788507]
[1729723791841,0.000824,66520.0,66519.0,0.72838888]
[1729723794045,0.000824,66520.0,66519.0,0.73038888]
[1729723796256,0.000824,66520.0,66519.0,0.72838888]
[1729723799533,0.000824,66520.0,66519.0,0.77333303]
[1729723800159,0.000824,66520.0,66519.0,0.77533303]
[1729723800655,0.000824,66520.0,66519.0,0.77333303]
[1729723800888,0.000824,66520.0,66519.0,0.77340092]
[1729723801114,0.000824,66520.0,66519.0,0.77540092]
[1729723801330,0.000824,66520.0,66519.0,0.72838888]
[1729723801545,0.000824,66532.0,66531.0,0.26146905]
[1729723801762,0.000824,66532.0,66531.0,0.27557091]
[1729723801991,0.000824,66532.0,66531.0,0.29096785]
[1729723802624,0.000824,66532.0,66531.0,0.29358267]
[1729723803039,0.000824,66532.0,66531.0,0.39288267]
[1729723803251,0.000824,66532.0,66531.0,0.6158332]
[1729723803456,0.000824,66532.0,66531.0,0.38726202]
[1729723805413,0.000824,66532.0,66531.0,0.38726024]
[1729723806256,0.000824,66532.0,66531.0,0.38744113]
[1729723812432,0.000824,66532.0,66531.0,0.36582006]
[1729723812806,0.000824,66532.0,66531.0,0.39496064]
[1729723814445,0.000824,66532.0,66531.0,0.29566064]
[1729723817995,0.000824,66532.0,66531.0,0.28814049]
[1729723818623,0.000824,66532.0,66531.0,0.29114615]
[1729723819036,0.000824,66532.0,66531.0,0.28814049]
[1729723819677,0.000824,66532.0,66531.0,0.26652006]
[1729723819882,0.000824,66532.0,66531.0,0.29114618]
[1729723820311,0.000824,66532.0,66531.0,0.47104618]
[1729723820549,0.000824,66532.0,66531.0,0.46804058]
[1729723823533,0.000824,66532.0,66531.0,0.46804001]
[1729723824858,0.000824,66532.0,66531.0,0.72970787]
[1729723825118,0.000824,66532.0,66531.0,0.79716494]
[1729723825333,0.000824,66532.0,66531.0,0.61854382]
[1729723825548,0.000824,66535.0,66534.0,0.00518089]
[1729723825803,0.000824,66535.0,66534.0,0.77048661]
[1729723825974,0.000824,66535.0,66534.0,0.7752231]
[1729723826423,0.000824,66535.0,66534.0,0.66405905]
[1729723828107,0.000824,66535.0,66534.0,0.7752231]
[1729723828728,0.000824,66535.0,66534.0,0.77521153]
[1729723829564,0.000824,66535.0,66534.0,0.66404748]
[1729723829773,0.000824,66535.0,66534.0,0.61910419]
[1729723830398,0.000824,66535.0,66534.0,0.73026824]
[1729723834716,0.000824,66535.0,66534.0,0.7302658]
[1729723835622,0.001704,66539.0,66538.0,0.15547089]
[1729723835865,0.001704,66539.0,66538.0,0.26825245]
[1729723836077,0.001704,66539.0,66538.0,0.3685166]
[1729723837108,0.001704,66539.0,66538.0,0.25735255]
[1729723837313,0.001704,66539.0,66538.0,0.4477166]
[1729723837743,0.001704,66539.0,66538.0,0.42609909]
[1729723838101,0.001704,66539.0,66538.0,0.44771653]
[1729723838504,0.001704,66539.0,66538.0,0.33655248]
[1729723838762,0.001704,66539.0,66538.0,0.44771653]
[1729723840525,0.001704,66539.0,66538.0,0.59822034]
[1729723842821,0.001704,66539.0,66538.0,0.60251805]
[1729723844627,0.001704,66539.0,66538.0,1.04963846]
[1729723844881,0.0125,66545.0,66544.0,0.5582041]
[1729723845112,0.0125,66545.0,66544.0,0.61078084]
[1729723845340,0.0125,66545.0,66544.0,0.62299552]
[1729723845541,0.0125,66545.0,66544.0,0.61547814]
[1729723845767,0.0125,66545.0,66544.0,0.62299611]
[1729723847038,0.0125,66545.0,66544.0,0.73416016]
[1729723847514,0.0125,66545.0,66544.0,0.62299611]
[1729723847670,0.0125,66545.0,66544.0,0.73416016]
[1729723847872,0.0125,66545.0,66544.0,0.62299611]
[1729723848104,0.0125,66545.0,66544.0,0.73416016]
[1729723848244,0.0125,66545.0,66544.0,0.62299611]
[1729723849094,0.0125,66545.0,66544.0,0.73416016]
[1729723849507,0.0125,66545.0,66544.0,0.62299611]
[1729723850320,0.0125,66545.0,66544.0,0.73416016]
[1729723852135,0.013324,66545.0,66544.0,0.51183206]
[1729723852371,0.013324,66545.0,66544.0,0.73416016]
[1729723852616,0.013324,66545.0,66544.0,0.712546]
[1729723852839,0.013324,66545.0,66544.0,0.73416008]
[1729723853077,0.013324,66545.0,66544.0,0.62299603]
[1729723854038,0.013324,66545.0,66544.0,0.73416008]
[1729723854248,0.013324,66545.0,66544.0,0.41543198]
[1729723854498,0.013324,66545.0,66544.0,0.52659603]
[1729723855659,0.000824,66545.0,66544.0,0.52659603]
[1729723856646,0.000824,66545.0,66544.0,0.17572898]
[1729723856877,0.000824,66545.0,66544.0,0.17103095]
[1729723857124,0.000824,66545.0,66544.0,0.17832126]
[1729723858333,0.000824,66545.0,66544.0,0.1757305]
[1729723859887,0.000824,66545.0,66544.0,0.17873564]
[1729723860145,0.000824,66545.0,66544.0,0.1757305]
[1729723860414,0.000824,66545.0,66544.0,0.15711923]
[1729723860648,0.000824,66545.0,66544.0,0.17873529]
[1729723860870,0.000824,66545.0,66544.0,0.25813529]
[1729723861549,0.000824,66545.0,66544.0,0.25513015]
[1729723862988,0.000824,66545.0,66544.0,0.23351409]
[1729723863231,0.000824,66545.0,66544.0,0.25512964]
[1729723866048,0.000824,66545.0,66544.0,0.26636052]
[1729723866288,0.000824,66545.0,66544.0,0.49231688]
[1729723866527,0.000824,66545.0,66544.0,0.62612838]
[1729723866744,0.000824,66545.0,66544.0,0.51496433]
[1729723867213,0.000824,66545.0,66544.0,0.4821179]
[1729723867454,0.001704,66549.0,66548.0,0.150267]
[1729723867692,0.001704,66549.0,66548.0,0.30108953]
[1729723867969,0.001704,66549.0,66548.0,0.29808482]
[1729723868665,0.001704,66549.0,66548.0,0.18992546]
[1729723870706,0.001704,66549.0,66548.0,0.18992906]
[1729723870908,0.001704,66549.0,66548.0,0.35922906]
[1729723871132,0.001704,66549.0,66548.0,0.50672818]
[1729723872449,0.001704,66549.0,66548.0,0.5516268]
[1729723873323,0.001704,66549.0,66548.0,0.50672818]
[1729723873493,0.001704,66549.0,66548.0,0.5516433]
[1729723874276,0.001704,66549.0,66548.0,0.5536433]
[1729723874477,0.001704,66549.0,66548.0,0.52079535]
[1729723874715,0.001704,66549.0,66548.0,0.5516454]
[1729723875825,0.001704,66549.0,66548.0,0.5536454]
[1729723876305,0.001704,66549.0,66548.0,0.50873028]
[1729723876839,0.001704,66549.0,66548.0,0.50673028]
[1729723876840,0.001636,66549.0,66548.0,0.50673028]
[1729723877092,0.001636,66549.0,66548.0,0.61789433]
[1729723877572,0.001704,66558.0,66557.0,0.150247]
[1729723877773,0.001704,66558.0,66557.0,0.28561531]
[1729723877992,0.001704,66558.0,66557.0,0.28938691]
[1729723878439,0.001704,66558.0,66557.0,0.26518265]
[1729723878676,0.001704,66558.0,66557.0,0.27457967]
[1729723878893,0.001704,66558.0,66557.0,0.29408464]
[1729723879108,0.001704,66558.0,66557.0,0.28938613]
[1729723880502,0.001704,66558.0,66557.0,0.28679579]
[1729723880718,0.001704,66558.0,66557.0,0.28980024]
[1729723882262,0.001704,66558.0,66557.0,0.28979997]
[1729723883175,0.001704,66558.0,66557.0,0.28679552]
[1729723884331,0.001704,66558.0,66557.0,0.17563147]
[1729723884547,0.097304,66558.0,66557.0,0.02538447]
[1729723884754,0.097304,66558.0,66557.0,0.17822064]
[1729723885442,0.001704,66558.0,66557.0,0.28679552]
[1729723885662,0.001704,66558.0,66557.0,0.28679561]
[1729723888670,0.001704,66558.0,66557.0,0.17822066]
[1729723888914,0.001704,66558.0,66557.0,0.28938471]
[1729723889129,0.001704,66558.0,66557.0,0.28679558]
[1729723890540,0.001704,66558.0,66557.0,0.28938543]
[1729723891182,0.001704,66558.0,66557.0,0.28679558]
[1729723892465,0.001704,66558.0,66557.0,0.28938543]
[1729723895455,0.001704,66558.0,66557.0,0.28679558]
[1729723896732,0.001704,66558.0,66557.0,0.26518265]
[1729723896949,0.001704,66558.0,66557.0,0.28679558]
[1729723898655,0.001704,66558.0,66557.0,0.26518265]
[1729723898869,0.001704,66558.0,66557.0,0.26818722]
[1729723898992,0.001704,66558.0,66557.0,0.26518265]
[1729723899417,0.001704,66558.0,66557.0,0.28679558]
[1729723899865,0.001704,66558.0,66557.0,0.27457958]
[1729723900311,0.001704,66558.0,66557.0,0.26518265]
[1729723900455,0.001704,66558.0,66557.0,0.26818716]
[1729723900654,0.001704,66558.0,66557.0,0.26818715]
[1729723900856,0.001704,66558.0,66557.0,0.36398715]
[1729723901057,0.001704,66558.0,66557.0,0.36098265]
[1729723903406,0.001704,66558.0,66557.0,0.38259467]
[1729723903659,0.001704,66558.0,66557.0,0.3901119]
[1729723903936,0.001704,66558.0,66557.0,0.38259467]
[1729723907755,0.001704,66558.0,66557.0,0.36098265]
[1729723907965,0.001704,66558.0,66557.0,0.38259467]
[1729723909867,0.001704,66558.0,66557.0,0.46189467]
[1729723911510,0.001704,66558.0,66557.0,0.44028265]
[1729723911714,0.001704,66558.0,66557.0,0.46189465]
[1729723915712,0.001704,66558.0,66557.0,0.50688687]
[1729723916851,0.001704,66558.0,66557.0,0.76855473]
[1729723917064,0.001704,66558.0,66557.0,0.79105088]
[1729723918105,0.001704,66558.0,66557.0,0.67989386]
[1729723918732,0.001704,66558.0,66557.0,0.67989192]
[1729723919351,0.001704,66558.0,66557.0,0.65828]
[1729723919567,0.001704,66558.0,66557.0,0.6798914]
[1729723920164,0.001704,66558.0,66557.0,0.67989135]
[1729723920748,0.001704,66558.0,66557.0,0.41822349]
[1729723920953,0.001704,66558.0,66557.0,0.43358754]
[1729723921734,0.001704,66558.0,66557.0,0.1540186]
[1729723921930,0.001704,66558.0,66557.0,0.1634149]
[1729723922136,0.001704,66558.0,66557.0,0.17563009]
[1729723925853,0.001704,66558.0,66557.0,0.17563015]
[1729723928489,0.001704,66558.0,66557.0,0.2867942]
[1729723929118,0.001704,66558.0,66557.0,0.02538315]
[1729723929325,0.36161205,66558.0,66557.0,0.0266771]
[1729723929540,0.250448,66558.0,66557.0,0.0266771]
[1729723929755,0.250448,66558.0,66557.0,0.01728077]
[1729723929957,0.250448,66558.0,66557.0,0.01221522]
[1729723930811,0.250448,66558.0,66557.0,0.01583964]
[1729723931423,0.250448,66558.0,66557.0,0.01221522]
[1729723933096,0.300506,66555.0,66551.0,0.22595636]
[1729723933305,0.150256,66553.0,66552.0,0.01221772]
[1729723933510,0.11616405,66556.0,66552.0,0.01584214]
[1729723933714,0.150256,66553.0,66552.0,0.00362442]
[1729723933945,0.300504,66555.0,66552.0,0.01584218]
[1729723934155,0.300507,66554.0,66553.0,0.01221776]
[1729723934381,0.45076,66554.0,66553.0,0.01221776]
[1729723934590,0.150253,66554.0,66553.0,0.01221776]
[1729723935002,0.150253,66554.0,66553.0,0.01584218]
[1729723935219,0.005,66556.0,66553.0,0.01584218]
[1729723935464,0.15525,66556.0,66554.0,0.01221776]
[1729723935671,0.15525,66556.0,66555.0,0.01221776]
[1729723935672,0.455748,66556.0,66555.0,0.01221776]
[1729723936338,0.455748,66556.0,66555.0,0.01584218]
[1729723936561,0.155249,66556.0,66555.0,0.01584218]
[1729723936798,0.155249,66556.0,66555.0,0.00362442]
[1729723937019,0.155249,66556.0,66555.0,0.01221782]
[1729723937264,0.155249,66556.0,66555.0,0.00751867]
[1729723937476,0.155249,66556.0,66555.0,0.01584226]
[1729723939236,0.155249,66556.0,66555.0,0.01221784]
[1729723939914,0.155249,66556.0,66555.0,0.01584226]
[1729723940358,0.155249,66556.0,66555.0,0.01221784]
[1729723940359,0.26641305,66556.0,66555.0,0.01221784]
[1729723940618,0.26641305,66556.0,66555.0,0.01584226]
[1729723940830,0.26641305,66556.0,66555.0,0.01584232]
[1729723941460,0.26641305,66556.0,66555.0,0.00832361]
[1729723941905,0.26641305,66556.0,66555.0,0.00469919]
[1729723942112,0.26641305,66556.0,66555.0,0.01221788]
[1729723942530,0.26641305,66556.0,66555.0,0.00469919]
[1729723944449,0.150261,66551.0,66549.0,0.01104638]
[1729723944657,0.150261,66551.0,66550.0,0.23817426]
[1729723944865,0.150258,66552.0,66550.0,0.01586722]
[1729723945071,0.150258,66552.0,66551.0,0.0122179]
[1729723946334,0.005,66553.0,66551.0,0.0122179]
[1729723946545,0.005,66553.0,66552.0,0.0122179]
[1729723946757,0.005,66553.0,66552.0,0.01586722]
[1729723948582,0.005,66553.0,66552.0,0.01586719]
[1729723951830,0.005,66553.0,66552.0,0.01586716]
[1729723953361,0.005,66553.0,66552.0,0.02526547]
[1729723956220,0.005,66553.0,66552.0,0.0365066]
[1729723959536,0.005,66553.0,66552.0,0.03652843]
[1729723960277,0.155256,66553.0,66552.0,0.03652843]
[1729723960483,0.005,66553.0,66552.0,0.03652843]
[1729723961300,0.005,66553.0,66552.0,0.03652839]
[1729723962184,0.155256,66553.0,66552.0,0.03652839]
[1729723962367,0.005,66553.0,66552.0,0.03652839]
[1729723962770,0.005,66553.0,66552.0,0.01491228]
[1729723963022,0.005,66553.0,66552.0,0.03652918]
[1729723966293,0.00725378,66553.0,66552.0,0.03652918]
[1729723966507,0.00725378,66553.0,66552.0,0.01491307]
[1729723966714,0.00725378,66553.0,66552.0,0.03652798]
[1729723968238,0.15750978,66553.0,66552.0,0.03652798]
[1729723968437,0.00725378,66553.0,66552.0,0.03652798]
[1729723970242,0.00807778,66553.0,66552.0,0.03652798]
[1729723970470,0.00807778,66553.0,66552.0,0.0149123]
[1729723970703,0.00807778,66553.0,66552.0,0.03652712]
[1729723971295,0.005824,66553.0,66552.0,0.03652712]
[1729723971728,0.005824,66553.0,66552.0,0.02526504]
[1729723974307,0.000824,66553.0,66552.0,0.02526504]
[1729723974523,0.000824,66553.0,66552.0,0.17552304]
[1729723974735,0.000824,66553.0,66552.0,0.17811414]
[1729723975581,0.000824,66553.0,66552.0,0.02785614]
[1729723979934,0.000824,66553.0,66552.0,0.02526504]
[1729723980963,0.000824,66553.0,66552.0,0.00364932]
[1729723981172,0.000824,66553.0,66552.0,0.17552301]
[1729723981381,0.000824,66553.0,66552.0,0.34516325]
[1729723981614,0.000824,66553.0,66552.0,0.34622885]
[1729723984249,0.000824,66553.0,66552.0,0.19597085]
[1729723984471,0.000824,66553.0,66552.0,0.32461316]
[1729723984714,0.000824,66553.0,66552.0,0.34622752]
[1729723984927,0.000824,66553.0,66552.0,0.10665864]
[1729723985840,0.000824,66553.0,66552.0,0.10406952]
[1729723987160,0.131897,66556.0,66552.0,0.10406952]
[1729723987377,0.131897,66556.0,66553.0,0.02161436]
[1729723987629,0.131897,66556.0,66554.0,0.02161436]
[1729723987824,0.131897,66556.0,66555.0,0.02161436]
[1729723988244,0.005,66557.0,66555.0,0.01409695]
[1729723988451,0.450748,66556.0,66555.0,0.0036505]
[1729723988667,0.150249,66556.0,66555.0,0.02526582]
[1729723990034,0.005,66557.0,66555.0,0.02526582]
[1729723990248,0.005,66557.0,66555.0,0.0036505]
[1729723990249,0.150249,66556.0,66555.0,0.0036505]
[1729723990455,0.150249,66556.0,66555.0,0.02161569]
[1729723990941,0.150249,66556.0,66555.0,0.02526619]
[1729723991444,0.005,66557.0,66555.0,0.02526619]
[1729723991445,0.155247,66557.0,66555.0,0.02526619]
[1729723991627,0.155247,66557.0,66555.0,0.0036505]
[1729723991628,0.150249,66556.0,66555.0,0.0036505]
[1729723991853,0.150249,66556.0,66555.0,0.0252661]
[1729723992070,0.150249,66556.0,66555.0,0.02527238]
[1729723992296,0.001704,66558.0,66556.0,0.0933]
[1729723992521,0.001704,66558.0,66557.0,0.0216156]
[1729723992998,0.001704,66558.0,66557.0,0.02527238]
[1729723995611,0.001704,66558.0,66557.0,0.00365678]
[1729723995826,0.001704,66558.0,66557.0,0.02527192]
[1729723996674,0.151948,66558.0,66557.0,0.02527192]
[1729723996920,0.001704,66558.0,66557.0,0.02527192]
[1729724000337,0.001704,66558.0,66557.0,0.10377192]
[1729724003252,0.001704,66558.0,66557.0,0.10377137]
[1729724010164,0.001704,66558.0,66557.0,0.10377141]
[1729724011099,0.151948,66558.0,66557.0,0.10377141]
[1729724013704,0.151948,66558.0,66557.0,0.08215678]
[1729724013913,0.001704,66558.0,66557.0,0.1037714]
[1729724014125,0.151948,66558.0,66557.0,0.08215678]
[1729724014341,0.151948,66558.0,66557.0,0.10377135]
[1729724014342,0.001704,66558.0,66557.0,0.10377135]
[1729724015172,0.151948,66558.0,66557.0,0.10377135]
[1729724017345,0.151948,66558.0,66557.0,0.02527135]
[1729724018464,0.001704,66558.0,66557.0,0.02527135]
[1729724018676,0.151948,66558.0,66557.0,0.02527135]
[1729724019962,0.151948,66558.0,66557.0,0.02161457]
[1729724020143,0.151948,66558.0,66557.0,0.02526038]
[1729724020610,0.156948,66558.0,66557.0,0.02526038]
[1729724021037,0.156948,66558.0,66557.0,0.02161457]
[1729724021282,0.156948,66558.0,66557.0,0.01221693]
[1729724021465,0.006704,66558.0,66556.0,0.001648]
[1729724021703,0.26141105,66557.0,66556.0,0.001648]
[1729724022559,0.26141105,66557.0,66556.0,0.01386569]
[1729724023793,0.26141105,66557.0,66556.0,0.001648]
[1729724023986,0.150247,66557.0,66556.0,0.001648]
[1729724025183,0.006704,66558.0,66551.0,0.22595636]
[1729724025400,0.150258,66552.0,66551.0,0.22595636]
[1729724025844,0.150258,66552.0,66551.0,0.01221769]
[1729724026260,0.150257,66553.0,66551.0,0.01221769]
[1729724026467,0.150257,66553.0,66552.0,0.01221769]
[1729724031003,0.43437523,66553.0,66552.0,0.02348172]
[1729724031233,0.43437523,66553.0,66552.0,0.01221769]
[1729724031234,0.43937523,66553.0,66552.0,0.01221769]
[1729724031462,0.43937523,66553.0,66552.0,0.01221826]
[1729724031698,0.43937523,66553.0,66552.0,0.00469911]
[1729724031904,0.28911823,66553.0,66544.0,0.150275]
[1729724032105,0.150266,66549.0,66545.0,0.150274]
[1729724032318,0.26643305,66547.0,66546.0,0.00751919]
[1729724032528,0.26643305,66547.0,66546.0,0.01221868]
[1729724032529,0.36173305,66547.0,66546.0,0.01221868]
[1729724032954,0.36173305,66547.0,66546.0,0.00469949]
[1729724035652,0.150281,66542.0,66538.0,0.150289]
[1729724035865,0.150281,66542.0,66540.0,0.23817649]
[1729724036083,0.150281,66542.0,66541.0,0.01222013]
[1729724037302,0.155281,66542.0,66541.0,0.01222013]
[1729724039084,0.155281,66542.0,66541.0,0.01222017]
[1729724039296,0.155281,66542.0,66535.0,0.150296]
[1729724039297,0.005,66542.0,66535.0,0.150296]
[1729724039507,0.11616405,66542.0,66540.0,0.01588496]
[1729724039719,0.56700805,66542.0,66541.0,0.01222017]
[1729724041208,0.455844,66542.0,66541.0,0.01222017]
[1729724041445,0.455844,66542.0,66541.0,0.00470006]
[1729724041651,0.150285,66540.0,66536.0,0.150293]
[1729724041862,0.150285,66540.0,66539.0,0.01753295]
[1729724042287,0.305563,66542.0,66539.0,0.01753295]
[1729724042508,0.305563,66542.0,66540.0,0.01222016]
[1729724042509,0.150284,66541.0,66540.0,0.01222016]
[1729724042716,0.155281,66542.0,66540.0,0.01222016]
[1729724042933,0.155281,66542.0,66541.0,0.00839385]
[1729724046341,0.155281,66542.0,66541.0,0.01591395]
[1729724047607,0.005,66542.0,66541.0,0.01591395]
[1729724047838,0.155281,66542.0,66541.0,0.01591395]
[1729724048253,0.005,66542.0,66541.0,0.01591395]
[1729724048475,0.155281,66542.0,66541.0,0.01222016]
[1729724048684,0.155281,66542.0,66541.0,0.00355789]
[1729724048902,0.155281,66542.0,66541.0,0.01222016]
[1729724049133,0.155281,66542.0,66541.0,0.01577805]
[1729724050583,0.155281,66542.0,66541.0,0.01577763]
[1729724050999,0.005,66542.0,66541.0,0.01577763]
[1729724051667,0.155281,66542.0,66541.0,0.01577763]
[1729724051919,0.005,66542.0,66541.0,0.01577763]
[1729724052750,0.005,66542.0,66541.0,0.00355789]
[1729724052886,0.005,66542.0,66541.0,0.01577763]
[1729724056650,0.155281,66542.0,66541.0,0.01577763]
[1729724056788,0.005,66542.0,66541.0,0.01577763]
[1729724057899,0.005,66542.0,66541.0,0.16606063]
[1729724060470,0.005,66542.0,66541.0,0.00355789]
[1729724060698,0.005,66542.0,66541.0,0.01577761]
[1729724060945,0.005,66542.0,66541.0,0.0251774]
[1729724067676,0.005,66542.0,66541.0,0.01295801]
[1729724067907,0.005,66542.0,66541.0,0.02517816]
[1729724071638,0.005,66542.0,66541.0,0.00355789]
[1729724071834,0.005,66542.0,66541.0,0.02517827]
[1729724073667,0.005,66542.0,66541.0,0.17546127]
[1729724073884,0.005,66542.0,66541.0,0.27186127]
[1729724074757,0.005,66542.0,66541.0,0.25024089]
[1729724075003,0.005,66542.0,66541.0,0.25776068]
[1729724075178,0.005,66542.0,66541.0,0.27186029]
[1729724075396,0.005,66542.0,66541.0,0.17546029]
[1729724075578,0.005,66542.0,66541.0,0.02682529]
[1729724078138,0.00477266,66542.0,66541.0,0.02682529]
[1729724078597,0.00477266,66542.0,66541.0,0.00520589]
[1729724078797,0.00477266,66542.0,66541.0,0.02682526]
[1729724080686,0.00477266,66542.0,66541.0,0.17710826]
[1729724081306,0.00477266,66542.0,66541.0,0.02682526]
[1729724082537,0.00477266,66543.0,66541.0,0.17710826]
[1729724082748,0.00477266,66543.0,66542.0,0.02161937]
[1729724082952,0.00477266,66543.0,66542.0,0.02519371]
[1729724084361,0.00477266,66543.0,66542.0,0.02161937]
[1729724084792,0.00477266,66543.0,66542.0,0.02519371]
[1729724085130,0.00477266,66543.0,66542.0,0.00357434]
[1729724085327,0.00477266,66543.0,66542.0,0.02519371]
[1729724086586,0.00477266,66543.0,66542.0,0.01579398]
[1729724086834,0.00477266,66543.0,66542.0,0.00357434]
[1729724088084,0.00477266,66543.0,66542.0,0.02519371]
[1729724091553,0.00477266,66543.0,66542.0,0.03646711]
[1729724093994,0.00477266,66543.0,66542.0,0.03613111]
[1729724094399,0.00477266,66543.0,66542.0,0.18641211]
[1729724094810,0.00477266,66543.0,66542.0,0.03613111]
[1729724095007,0.00477266,66543.0,66542.0,0.18641211]
[1729724095274,0.00477266,66543.0,66542.0,0.03613111]
[1729724095609,0.00477266,66543.0,66542.0,0.02485771]
[1729724096433,0.00477266,66543.0,66542.0,0.0361312]
[1729724099033,0.00477266,66543.0,66542.0,0.0377792]
[1729724099239,0.00559666,66543.0,66542.0,0.0377792]
[1729724099440,0.00559666,66543.0,66542.0,0.03778038]
[1729724101316,0.15587466,66543.0,66542.0,0.03778038]
[1729724102616,0.00559666,66543.0,66542.0,0.18806138]
[1729724102779,0.00559666,66543.0,66542.0,0.03778038]
[1729724103220,0.00559666,66543.0,66542.0,0.18806138]
[1729724103367,0.00559666,66543.0,66542.0,0.03778038]
[1729724104426,0.15587466,66543.0,66542.0,0.03778038]
[1729724105252,0.15587466,66543.0,66542.0,0.03454204]
[1729724105864,0.15587466,66543.0,66542.0,0.03809389]
[1729724109446,0.15587466,66543.0,66542.0,0.03809512]
[1729724110406,0.00559666,66543.0,66542.0,0.03809512]
[1729724110687,0.15587466,66543.0,66542.0,0.03809512]
[1729724111780,0.15587466,66543.0,66542.0,0.01741928]
[1729724112165,0.15587466,66543.0,66542.0,0.02681953]
[1729724112400,0.15587466,66543.0,66542.0,0.01741928]
[1729724112602,0.15587466,66543.0,66542.0,0.01386815]
[1729724112803,0.15587466,66543.0,66542.0,0.01741928]
[1729724113051,0.15587466,66543.0,66542.0,0.00519913]
[1729724113258,0.15587466,66543.0,66542.0,0.00989926]
[1729724113464,0.15587466,66543.0,66542.0,0.01741946]
[1729724113933,0.65903781,66543.0,66542.0,0.01741946]
[1729724114156,0.76282119,66543.0,66542.0,0.01741946]
[1729724114361,0.67267028,66543.0,66542.0,0.00634813]
[1729724115009,0.78537453,66543.0,66542.0,0.001648]
[1729724115214,0.67267028,66543.0,66542.0,0.001648]
[1729724116098,0.90083433,66543.0,66542.0,0.001648]
[1729724116315,0.90083433,66543.0,66541.0,0.001648]
[1729724116316,0.47195366,66542.0,66541.0,0.001648]
[1729724116520,0.96995635,66542.0,66541.0,0.001648]
[1729724116737,0.85480356,66542.0,66541.0,0.001648]
[1729724116946,1.00530737,66542.0,66541.0,0.001648]
[1729724117413,1.00530737,66542.0,66539.0,0.001648]
[1729724117414,0.32167266,66540.0,66539.0,0.001648]
[1729724117624,0.32167266,66540.0,66519.0,0.001648]
[1729724117625,1.01118138,66540.0,66519.0,0.001648]
[1729724117829,0.80677095,66533.0,66519.0,0.001648]
[1729724118032,0.86069357,66533.0,66519.0,0.001648]
[1729724118451,0.973084,66533.0,66519.0,0.001648]
[1729724118679,0.86069357,66533.0,66519.0,0.001648]
[1729724119110,0.27008966,66526.0,66519.0,0.001648]
[1729724119321,0.69231776,66526.0,66519.0,0.001648]
[1729724119541,0.36000066,66521.0,66519.0,0.001648]
[1729724119774,0.87774704,66521.0,66519.0,0.001648]
[1729724120209,0.83283257,66521.0,66519.0,0.001648]
[1729724123497,0.98333638,66521.0,66519.0,0.001648]
[1729724125899,0.83283257,66521.0,66519.0,0.001648]
[1729724131772,0.84483257,66521.0,66519.0,0.001648]
[1729724132186,0.84283257,66521.0,66519.0,0.001648]
[1729724132634,0.95599662,66521.0,66519.0,0.001648]
[1729724133075,0.84483257,66521.0,66519.0,0.001648]
[1729724133348,0.99533638,66521.0,66519.0,0.001648]
[1729724134260,1.10650043,66521.0,66519.0,0.001648]
[1729724135753,0.99533638,66521.0,66519.0,0.001648]
[1729724135970,1.10650043,66521.0,66519.0,0.001648]
[1729724136677,0.99533638,66521.0,66519.0,0.001648]
[1729724137704,1.10650043,66521.0,66519.0,0.001648]
[1729724138167,0.99533638,66521.0,66519.0,0.001648]
[1729724144993,0.99333638,66521.0,66519.0,0.001648]
[1729724147752,0.99533638,66521.0,66519.0,0.001648]
[1729724149086,0.99333638,66521.0,66519.0,0.001648]
[1729724149536,0.99533638,66521.0,66519.0,0.001648]
[1729724149748,0.36754766,66500.0,66499.0,1e-06]
[1729724149958,0.29516666,66492.0,66491.0,0.001648]
[1729724150160,0.53760253,66492.0,66491.0,0.001648]
[1729724150378,0.53760253,66492.0,66491.0,0.00507311]
[1729724150601,0.71000253,66492.0,66491.0,0.001648]
[1729724151778,0.48767443,66492.0,66491.0,0.001648]
[1729724151983,0.71444912,66492.0,66491.0,0.001648]
[1729724153168,0.71244912,66492.0,66491.0,0.001648]
[1729724153376,1.01545674,66492.0,66491.0,0.001648]
[1729724155597,1.01345674,66492.0,66491.0,0.001648]
[1729724155769,1.01545674,66492.0,66491.0,0.001648]
[1729724155963,1.01803371,66492.0,66491.0,0.001648]